[Event "Portuguese Rapid-ch 2022"]
[Site "Viseu"]
[Date "2022.06.10"]
[Round "2.8"]
[White "Ferreira, Luis Pedro"]
[Black "Martins Jr Sobrinho, Manuel De"]
[Result "1-0"]
[ECO "B24"]
[WhiteElo "2183"]
[BlackElo "2002"]
[Annotator "TA"]
[PlyCount "45"]
[EventDate "2022.06.09"]
[EventType "rapid"]
[EventCountry "POR"]
[SourceTitle "playchess.com"]
[Source "ChessBase"]
[SourceQuality "1"]
[TimeControl "600+5"]

{[%evp 17,45,24,223,215,327,320,320,349,356,350,521,610,591,570,760,717,711,716,752,734,912,894,981,958,950,952,1273,1266,29997,29998]} 1. e4 {[%emt 0:00:02]} c5 {[%emt 0:05:24]} 2. Nc3 {[%emt 0:00:08]} Nc6 {[%emt 0:00:03]} 3. g3 {[%emt 0:00:02]} g6 {[%emt 0:00:02]} 4. Bg2 {[%emt 0:00:01]} Bg7 {[%emt 0:00:01]} 5. d3 {[%emt 0:00:02]} e6 {[%emt 0:00:02]} 6. Be3 {[%emt 0:00:01]} d6 {[%emt 0:00:01]} 7. Qd2 {[%emt 0:00:01]} Nge7 {[%emt 0:00:01]} 8. Bh6 {[%emt 0:00:01]} O-O {[%emt 0:00:02]} 9. h4 {[%emt 0:00:01][%cal Bh2h4,Bh4h5][%mdl 32]} f5 $2 {[%emt 0:00:14] [#]} (9... Bxh6 $11 {and Black has nothing to worry.} 10. Qxh6 f6) 10. h5 {[%emt 0:00:09] Hoping for hxg6. B26: Closed Sicilian: 3 g3, lines with early Be3.} f4 {[%emt 0:01:22]} (10... Rf7 $142 11. hxg6 Nxg6) 11. Bxg7 $18 {[%emt 0:00:27]} ({Less strong is} 11. Bxf4 gxh5 12. Bh6 (12. Rxh5 Qe8 $16) 12... Rf7 13. Rxh5 Nd4 $16) 11... Kxg7 {[%emt 0:00:02]} 12. gxf4 {[%emt 0:00:02][%cal Bg3f4,Bf4f5][%mdl 32] [#] White has a decisive advantage.} Nd4 $146 {[%emt 0:00:47]} ({Predecessor:} 12... Ng8 13. hxg6 hxg6 14. Nge2 Nd4 15. Nxd4 cxd4 16. Ne2 Qf6 17. O-O-O Bd7 18. Rdg1 Rac8 19. Bf3 Rxc2+ 20. Kxc2 {1-0 (20) Vigil Alvarez,L-Alvarez,R (2265) Oviedo 1991}) 13. O-O-O {[%emt 0:00:27]} b5 {[%emt 0:00:42]} (13... Kh8 {might work better.} 14. Nce2 gxh5 15. Nxd4 cxd4 16. Rxh5 Rg8) 14. hxg6 {[%emt 0:00:16]} hxg6 {[%emt 0:01:16]} 15. f5 {[%emt 0:00:03]} Rh8 {[%emt 0:00:09]} 16. Rxh8 {[%emt 0:00:17]} Qxh8 {[%emt 0:00:02]} 17. f6+ {[%emt 0:00:01]} Kxf6 {[%emt 0:00:38]} 18. e5+ {[%emt 0:00:02]} dxe5 {[%emt 0:00:02]} 19. Bxa8 {[%emt 0:00:02]} Ba6 {[%emt 0:00:12]} 20. Ne4+ {[%emt 0:00:09]} Kg7 {[%emt 0:00:03]} 21. Qg5 {[%emt 0:00:09]} Nef5 {[%emt 0:00:10]} 22. Qf6+ {[%emt 0:00:02]} Kh7 {[%emt 0:00:03]} 23. Ng5+ {[%emt 0:00:03] White took control after the opening.  Weighted Error Value: White=0.02 (flawless) /Black=1.80} 1-0

[Event "Portuguese Rapid-ch 2022"]
[Site "Viseu"]
[Date "2022.06.10"]
[Round "3.1"]
[White "Ferreira, Jorge Viterbo"]
[Black "Sismeiro, Miguel"]
[Result "1-0"]
[ECO "D95"]
[WhiteElo "2512"]
[BlackElo "2148"]
[Annotator "TA"]
[PlyCount "73"]
[EventDate "2022.06.09"]
[EventType "rapid"]
[EventCountry "POR"]
[SourceTitle "playchess.com"]
[Source "ChessBase"]
[SourceQuality "1"]
[TimeControl "600+5"]

{[%evp 15,73,22,22,17,30,8,13,14,7,11,83,21,13,0,3,7,1,-16,-13,0,34,0,25,-24,16,-13,-2,-7,0,0,114,106,143,125,143,131,131,106,112,106,204,147,143,134,356,203,441,330,292,328,307,249,292,288,271,276,397,354,341,337]} 1. d4 Nf6 2. c4 g6 3. Nc3 d5 4. Nf3 Bg7 5. e3 O-O 6. Qb3 c6 7. Bd3 dxc4 8. Bxc4 b5 9. Be2 {D95: Grünfeld: 4 Nf3 Bg7 5 e3 0-0 6 Qb3.} Be6 10. Qd1 b4 11. Na4 {The position is equal.} Nbd7 12. O-O {[#]} Qa5 $146 (12... Bd5 $11) ({Predecessor:} 12... Ne4 13. b3 Nb6 14. Bb2 Nxa4 15. bxa4 c5 16. Qc2 Qd5 17. Bd3 f5 {½-½ (17) Rhein,T (1813)-Bothe,M (1873) Mittelfranken 2017}) 13. Bd2 (13. a3 $16) 13... Ne4 $11 14. Be1 {Threatening a3.} Nb6 $1 15. Nxb6 Qxb6 16. Bd3 Bd5 17. Qc2 Nd6 18. Rc1 (18. Ne5 $5 {[%cal Re5d7]}) 18... Rfc8 19. b3 (19. Ne5 {deserves consideration.}) 19... f5 (19... Bxf3 $5 20. gxf3 Nb7 $11) 20. Nd2 {[%cal Bf3d2,Bd2c4,Bc4b2,Bb2a4][%mdl 32]} a5 21. Nc4 Qd8 22. Nb2 c5 (22... f4 $11) 23. dxc5 $16 Ne4 24. Na4 Rc7 {[%cal Oe4c5]} 25. Bc4 {Hoping for Rd1.} e6 26. Bxd5 exd5 27. Qd3 {Strongly threatening f3.} d4 (27... Rac8 $16) 28. f3 Nc3 29. Bg3 $36 {[%mdl 2048] White is on the roll.} ({Reject} 29. Bxc3 $6 dxc3 30. Qc4+ Kh8 $11) 29... Rd7 {[#] A mistake that costs the game.} (29... Rf7 $16) 30. c6 (30. Nb6 $142) 30... Re7 $2 (30... Rf7 {was worth a try.}) 31. c7 Rxc7 32. Bxc7 Qxc7 33. exd4 {[%cal Ra4c3]} Rd8 34. Nxc3 Bxd4+ 35. Kh1 bxc3 (35... Bxc3 {is a better defense.} 36. Qb5 Rb8) 36. Rfd1 $18 Kg7 {[#]} 37. Rxc3 $3 {[%mdl 512] Weighted Error Value: White=0.26 (precise) /Black=0.42} 1-0

[Event "Portuguese Rapid-ch 2022"]
[Site "Viseu"]
[Date "2022.06.10"]
[Round "3.2"]
[White "Silva, Miguel Antonio Neto"]
[Black "Sousa, Andre Ventura"]
[Result "0-1"]
[ECO "A05"]
[WhiteElo "2215"]
[BlackElo "2420"]
[Annotator "TA"]
[PlyCount "68"]
[EventDate "2022.06.09"]
[EventType "rapid"]
[EventCountry "POR"]
[SourceTitle "playchess.com"]
[Source "ChessBase"]
[SourceQuality "1"]
[TimeControl "600+5"]

{[%evp 17,68,20,27,0,0,-8,-8,-8,0,-12,-9,-10,-2,-15,0,0,0,-16,-23,-24,-18,-27,-20,-22,-34,-75,-37,-97,0,-70,-43,-55,-21,-36,0,-84,-5,-161,-156,-322,-334,-413,-415,-439,-386,-389,-389,-386,-377,-384,-375,-434,-420]} 1. Nf3 Nf6 2. c4 g6 3. g3 Bg7 4. Bg2 O-O 5. O-O d6 6. Nc3 e5 7. d3 h6 8. Rb1 a5 9. a3 {[%cal Ba2a3,Ba3b4,Bb4b5][%mdl 32]} Be6 10. Nd2 {A24: English Opening vs King's Indian: Lines without ...Nc6.} c6 11. b4 axb4 12. axb4 {The position is equal.} Nbd7 13. b5 d5 14. Bb2 Qe7 15. Qc2 Rfc8 {[#]} 16. bxc6 $146 ({Predecessor:} 16. Ra1 Rxa1 17. Rxa1 cxb5 18. Nxb5 Qc5 19. Ba3 Qxb5 20. Rb1 Qa6 21. Qb2 Rb8 22. cxd5 Bxd5 23. Bxd5 Nxd5 24. Nc4 e4 25. d4 {0-1 (25) Miszler,L (2210)-Ronka,E (2355) Chess.com INT 2022}) 16... bxc6 {[%cal Bb7c6,Bc6d5,Bd5d4][%mdl 32]} 17. Rfc1 h5 {[%cal Bh6h5,Bh5h4][%mdl 32]} 18. Ra1 h4 19. Rxa8 Rxa8 20. cxd5 cxd5 21. Nf3 Bh6 (21... h3 $5 {[%cal Rh3g2]} 22. Bh1 Rb8 $17) 22. Ra1 (22. Rb1 $15) 22... Rc8 ({Black should try} 22... Rxa1+ $17 23. Bxa1 Qc5) 23. Qa4 (23. Nxd5 $1 $11 Rxc2 24. Nxe7+ Kg7 25. Bxe5 Nxe5 26. Nxe5) 23... hxg3 24. hxg3 d4 25. Nb5 Nc5 {[%cal Bd7c5,Bc5b3,Bb3a1,Ba1b3,Bb3c1][%mdl 32]} 26. Qa3 (26. Qa7 $11 {remains equal.} Qd7 27. Ra5 Qxa7 28. Nxa7) 26... Ng4 {Black is more active.} (26... Bd7 $17 27. Na7 Rb8) 27. Bc1 $2 {[#]} (27. Qa7 $11 {and White stays safe.} Qxa7 28. Nxa7) 27... Bf8 $1 $36 {[%mdl 2048] Strongly threatening ...Qd7. White is under strong pressure.} 28. Bd2 $2 {This move loses the game for White.} (28. Rb1 $17) 28... Qd7 {Hoping for ...Nb3.} 29. Na7 Nb3 30. Qa4 Nxa1 31. Qxd7 Bxd7 32. Nxc8 Bxc8 33. Bh3 Nb3 34. Be1 Nc1 {Weighted Error Value: White=0.46/Black=0.21 (precise)} 0-1

[Event "Portuguese Rapid-ch 2022"]
[Site "Viseu"]
[Date "2022.06.10"]
[Round "3.4"]
[White "Santos, Jose Guilherme B Lim"]
[Black "Ribeiro, Fernando"]
[Result "1-0"]
[ECO "B01"]
[WhiteElo "2365"]
[BlackElo "2116"]
[Annotator "TA"]
[PlyCount "101"]
[EventDate "2022.06.09"]
[EventType "rapid"]
[EventCountry "POR"]
[SourceTitle "playchess.com"]
[Source "ChessBase"]
[SourceQuality "1"]
[TimeControl "600+5"]

{[%evp 10,101,66,55,66,69,55,47,45,44,43,0,62,40,105,97,175,170,158,166,180,-12,0,-60,123,38,54,0,137,135,237,232,239,139,120,90,123,113,131,70,121,106,134,136,142,146,129,134,134,120,183,143,142,148,155,167,158,147,152,72,77,77,162,162,172,135,145,118,102,115,106,108,161,161,149,143,1504,426,444,442,442,467,453,463,437,432,624,625,616,545,991,948,991,629]} 1. e4 d5 2. exd5 Qxd5 3. Nc3 Qd6 4. Nf3 Nf6 5. d4 Bg4 6. h3 Bh5 {B01: Scandinavian Defence.} 7. g4 Bg6 8. Ne5 Nbd7 $1 {White is slightly better.} 9. Nc4 Qe6+ 10. Be3 {[#] aiming for d5.} Nb6 $146 {Prevents d5.} (10... Nd5 $11) ({Predecessor:} 10... Nd5 11. Qd2 Nxc3 12. Qxc3 Be4 13. Rg1 O-O-O 14. O-O-O Qc6 15. d5 Bxd5 16. Bxa7 e6 {½-½ (24) Onoprijchuk,B (2403)-Abramov,L (2349) Saratov 2008}) 11. Nxb6 $14 axb6 (11... Qxb6 $14 12. Bb5+ c6) 12. Bg2 $16 O-O-O {[#]} (12... Qc8 $16 {was worth a try.}) 13. Qf3 $1 $36 {[%mdl 2048] White has strong initiative.} c6 {[#]} 14. O-O $1 Nd5 15. Na4 $2 (15. Nxd5 $18 Qxd5 16. Qe2) 15... Bxc2 $11 16. b3 (16. Nc3 $11) 16... Kb8 $2 (16... h5 $15 {stays ahead.} 17. gxh5 b5) 17. Rac1 (17. Qg3+ $16 Qd6 18. Bxd5 Qxg3+ 19. fxg3 Rxd5 20. Nxb6) 17... Bd3 $14 18. Rfe1 ({White should play} 18. Rfd1 $14 Nxe3 19. fxe3 (19. Rxd3 Nxg2 20. Qxg2 h5 $15)) 18... Qg6 (18... Ka7 $11) 19. Qg3+ $16 Ka7 (19... Qd6 $16) 20. Bxd5 $18 cxd5 21. Bf4 ({Only move:} 21. Qc7 $18 Qd6 22. Bf4 Qxc7 23. Bxc7) 21... e5 $16 22. Bxe5 {Hoping for Bc7.} Bd6 23. Bxd6 Rxd6 24. Rc7 ({Better is} 24. Re5 $16) 24... Ba6 (24... h5 $1 $14) 25. Rxf7 Qxf7 26. Qxd6 Rf8 27. Qg3 {White is much more active.} ({But not} 27. Qxb6+ $2 Ka8 28. Qb4 Qxf2+ 29. Kh1 Rf6 30. Re8+ Ka7 31. Qc5+ b6 $19) 27... Qf4 28. Qxf4 Rxf4 {[%mdl 4096] Endgame KRB-KRN} 29. Rd1 h5 (29... Be2 $16 {keeps fighting.} 30. Rd2 Bf3) 30. Nc3 hxg4 31. Nxd5 Rf7 32. hxg4 Be2 33. Re1 Bxg4 34. Ne3 ({White should try} 34. Re7 Rxe7 35. Nxe7) 34... Bf3 35. Kh2 Rd7 (35... Rf6 $16) 36. Kg3 $18 Be4 37. Kf4 Bc6 38. Rd1 {Threatens to win with Ke5.} Rf7+ 39. Ke5 {Strongly threatening Rd2.} Rxf2 40. d5 Bd7 (40... Re2 $16) 41. Kd6 Bh3 42. Rh1 Bg2 {[%mdl 8192] Black cannot hold the game after this.} (42... Rf3 $16) 43. Rh2 (43. Nxg2 $142 Rxg2 44. Re1) 43... Rf6+ 44. Ke7 Be4 45. d6 {White wants to mate with d7.} Bc6 46. d7 Bxd7 47. Kxd7 b5 (47... Rf7+ $142 48. Ke6 Rf6+ 49. Kd5 Rf3) 48. Rg2 Rf3 49. Nd5 Rd3 50. Kd6 Kb8 51. Kc5 {Weighted Error Value: White=0.40/Black=0.37} 1-0

[Event "Portuguese Rapid-ch 2022"]
[Site "Viseu"]
[Date "2022.06.10"]
[Round "3.5"]
[White "Santos, Antonio P"]
[Black "Padeiro, Jose"]
[Result "1-0"]
[ECO "E16"]
[WhiteElo "2182"]
[BlackElo "2207"]
[Annotator "TA"]
[PlyCount "115"]
[EventDate "2022.06.09"]
[EventType "rapid"]
[EventCountry "POR"]
[SourceTitle "playchess.com"]
[Source "ChessBase"]
[SourceQuality "1"]
[TimeControl "600+5"]

{[%evp 9,115,15,17,12,12,12,12,0,26,4,0,-5,0,-52,22,16,35,20,37,44,61,59,60,54,55,53,61,60,59,67,63,59,63,20,22,26,35,30,74,44,66,51,71,60,75,0,99,12,15,-69,-78,-106,22,28,68,79,154,70,83,75,185,188,199,153,149,134,252,252,425,410,410,351,729,563,701,539,468,468,647,580,1963,1961,1350,1664,2252,2070,12837,12838,12837,12835,12841,12841,12848,12844,12843,12835,29991,29992,29992,29993,29994,29995,29996,29997,29998,29998,29998,29999]} 1. d4 Nf6 2. c4 e6 3. Nf3 Bb4+ 4. Bd2 Qe7 5. Nc3 O-O 6. a3 {E11: Bogo-Indian.} Bxc3 7. Bxc3 Ne4 8. Qc2 {The position is equal.} f5 9. e3 b6 10. Bd3 Bb7 11. O-O (11. Bxe4 $11 fxe4 12. Nd2) 11... d6 (11... Nxc3 $15 12. bxc3 (12. Qxc3 Bxf3 13. gxf3 Qh4 $15) 12... Bxf3 13. gxf3 c5) 12. Be1 $11 Nd7 13. Nd2 {[%cal Rd2e4]} Nxd2 14. Bxd2 {[#]} Nf6 $146 ({Predecessor:} 14... c5 15. Rae1 Qh4 16. g3 Qh5 17. Be2 Qh3 18. f3 cxd4 19. exd4 e5 20. d5 Rac8 {½-½ (34) Pelletier,Y (2474)-Hansen,C (2613) Germany 2001}) 15. f3 c5 16. b4 Rac8 17. Rfe1 Rfd8 18. a4 {[%cal Ba3a4,Ba4a5][%mdl 32]} cxb4 19. Bxb4 Qf7 20. a5 b5 21. Qb3 bxc4 22. Bxc4 Bd5 23. Bxd5 exd5 24. Qa3 Qd7 25. a6 Rc4 26. Bd2 Rdc8 {[%cal Bd8c8,Bc8c6,Bc6b6][%mdl 32]} 27. Rec1 (27. Reb1 $16) 27... h6 (27... Rxc1+ $11 28. Bxc1 (28. Rxc1 Rxc1+ 29. Qxc1 Qa4 $11) 28... Kf7) 28. Bb4 (28. Rcb1 $16) 28... R8c6 29. Rxc4 (29. Rcb1 $11) 29... dxc4 $15 30. Qa5 Qc8 ({Better is} 30... Qe6 $17 31. Kf2 Nd5) 31. d5 $11 Rb6 32. Bc3 $1 Qc5 (32... Nd7 $142) 33. Qxc5 ({White should play} 33. Bd4 $16 Qxa5 34. Rxa5 Rb1+ 35. Kf2) 33... dxc5 $14 34. Bxf6 gxf6 $16 {[%mdl 4096] Endgame [#] KR-KR} (34... Rxf6 $16 35. Ra5 Kf7) 35. Ra5 $1 $18 Kf7 36. Rxc5 ({White should try} 36. Kf2 $18) 36... Rxa6 $16 37. Rxc4 Rd6 (37... Ra5 $16 38. Rc7+ Kg6) 38. Rc7+ $18 Kg6 $2 (38... Kf8 39. Rxa7 Rxd5) 39. e4 fxe4 40. fxe4 {[#] Hoping for Kf2.} a6 $2 (40... Rd8 41. Rxa7 f5 42. exf5+ (42. Ra6+ Kg5 $16) 42... Kxf5) 41. Kf2 Rb6 42. Rc6 Rb2+ 43. Kf3 {aiming for e5.} Rb3+ 44. Kf4 Rb2 45. e5 Rb4+ 46. Ke3 Kf5 47. exf6 a5 48. f7 Rb8 49. Kd4 Ra8 50. g4+ Kxg4 51. d6 {[%cal Bd5d6,Bd6d7][%mdl 32]} a4 52. d7 {Rc8 would kill now.} a3 53. Rc8 {White mates.} Ra4+ 54. Ke3 a2 55. f8=Q a1=Q 56. Qf3+ Kh4 57. Qg3+ Kh5 58. Rc5+ {Weighted Error Value: White=0.24 (precise) /Black=0.46} 1-0

[Event "Portuguese Rapid-ch 2022"]
[Site "Viseu"]
[Date "2022.06.10"]
[Round "3.6"]
[White "Martins, Bruno Andre Leite"]
[Black "Pipiras, Filipa Fortuna"]
[Result "1-0"]
[ECO "D00"]
[WhiteElo "2327"]
[BlackElo "2135"]
[Annotator "TA"]
[PlyCount "133"]
[EventDate "2022.06.09"]
[EventType "rapid"]
[EventCountry "POR"]
[SourceTitle "playchess.com"]
[Source "ChessBase"]
[SourceQuality "1"]
[TimeControl "600+5"]

{[%evp 9,133,6,4,-12,0,-9,-1,-4,-8,0,22,0,-8,-7,-8,-58,0,-11,172,0,0,0,0,0,0,0,0,-22,64,36,48,67,46,0,0,0,23,34,34,31,35,41,33,0,0,0,0,0,0,0,0,0,0,0,0,0,0,0,6,0,0,0,0,0,121,121,121,121,162,320,239,0,0,0,15,0,0,0,0,0,0,0,0,0,0,0,0,0,0,0,29964,0,0,0,29960,29965,29982,29983,29982,8,8,8,29962,8,8,8,8,8,8,8,8,8,8,8,8,8,8,8,8,8,29986,29987,29989,29990,29991,29992]} 1. d4 d5 2. Bf4 Nf6 3. e3 c5 4. c3 e6 5. Nd2 Bd6 6. Bg3 {D00: 1 d4 d5: Unusual lines.} Qc7 7. Ngf3 Nbd7 8. dxc5 {The position is equal.} Nxc5 9. c4 {[#]} dxc4 $146 ({Predecessor:} 9... Bxg3 10. hxg3 O-O 11. cxd5 exd5 12. Qc2 Qb6 13. Rc1 Be6 14. Be2 Rac8 15. O-O d4 16. Nxd4 {1-0 (75) Obregon,C (2525)-Makhnev,D (2480) Chess.com INT 2021}) 10. Bxc4 Bxg3 11. hxg3 O-O 12. g4 (12. b4 $11 Ncd7 13. O-O) 12... h6 (12... Nxg4 $15 13. Rc1 Qd6) 13. Rc1 {aiming for b4.} Qd6 $2 (13... Bd7 $11 {and Black is okay.}) 14. b4 $2 ({White must play} 14. g5 $18 hxg5 15. Qc2) 14... Nd3+ $11 15. Bxd3 Qxd3 16. g5 hxg5 17. Nxg5 {Hoping for Qf3.} Rd8 18. Rc4 Kf8 ({Black should play} 18... Bd7 $11 19. Rd4 Qc3) 19. Rh8+ $14 Ke7 20. Rxd8 {Dancing on a razor blade.} Qxd8 21. Qc2 (21. Qf3 $14 {was preferrable.}) 21... Bd7 $1 $11 22. Rc7 Rc8 23. Qc5+ Ke8 24. Rxc8 Qxc8 25. Qxc8+ ({Avoid the trap} 25. Qxa7 $2 Qc1+ 26. Ke2 Bb5+ 27. Kf3 Qxd2 $19) 25... Bxc8 26. Nge4 Nxe4 27. Nxe4 {[%mdl 4096] Endgame KB-KN} Ke7 {Against Nd6} 28. Kd2 Bd7 29. Nc3 b6 30. Kd3 Bc6 31. e4 Kd6 32. f4 f6 33. a3 g5 34. fxg5 fxg5 35. Kd4 e5+ 36. Ke3 g4 (36... Bd7 $11) 37. Kf2 $1 $16 a5 38. Kg3 $1 axb4 39. axb4 Bd7 40. Nd1 $2 (40. Kh4 $1 $18) 40... Kc6 $1 $11 41. Ne3 Kb5 42. Nxg4 Kxb4 43. Nxe5 Be6 44. Kf4 Kc3 45. Nc6 b5 46. Ke5 Bd7 47. Na5 b4 48. Kd6 Bg4 49. e5 {[%cal Be4e5,Be5e6,Be6e7][%mdl 32] Black must now prevent e6.} Kd2 $2 {[%mdl 8192]} (49... b3 $11 50. Nxb3 Kxb3) 50. Kc5 $2 (50. e6 Bh5 51. e7 Be8 52. g4 Ke3 53. Ke5 Kf3 54. g5 Kg4 55. Kf6) 50... Kc3 51. Kd6 $2 {[%mdl 8192]} (51. Kd5 $11) 51... Kd2 52. e6 Ke2 53. e7 Bh5 54. Kc5 $2 (54. Ke5 Be8 55. Kf6 Ba4 56. g4 b3 {[#]} 57. Nxb3 $1 {[%mdl 512]} Kd1 58. g5 $1 Bxb3 59. e8=Q) 54... Ke3 55. Kxb4 Kf4 $2 {[%mdl 8192]} (55... Ke4 $11) 56. Kc5 $2 (56. Nc4 {mates} Kg3 57. Ne3 Kf4 58. Nd5+ Ke5 59. Nc7 Kf4 60. Kc5 Kg3 61. Nd5) 56... Kg3 57. Kd6 Be8 58. Nb7 {Threatening mate with Kc7.} Kxg2 59. Ke6 Kf3 60. Nd6 Bc6 61. Nf7 {White threatens Ne5+ and mate.} Kf4 62. Kf6 Be8 63. Ng5 Bc6 64. Nh7 Ke4 $2 {[%mdl 8192]} (64... Ba4 $11) 65. Ke6 {White mates.} Bd5+ 66. Kd6 Bf7 67. Ng5+ {Weighted Error Value: White=0.43/Black=0.43} 1-0

[Event "Portuguese Rapid-ch 2022"]
[Site "Viseu"]
[Date "2022.06.10"]
[Round "3.7"]
[White "Avramescu, Paul-Mihai"]
[Black "Ferreira, Luis Pedro"]
[Result "0-1"]
[ECO "A46"]
[WhiteElo "2008"]
[BlackElo "2183"]
[Annotator "TA"]
[PlyCount "89"]
[EventDate "2022.06.09"]
[EventType "rapid"]
[EventCountry "POR"]
[SourceTitle "playchess.com"]
[Source "ChessBase"]
[SourceQuality "1"]
[TimeControl "600+5"]

{[%evp 17,89,0,2,-11,-18,-14,-8,-25,-26,-22,-16,-9,-11,-27,0,-5,0,0,0,0,0,-26,-20,-52,0,0,0,-32,0,0,0,-25,25,19,14,0,0,0,0,0,0,-59,-57,-152,-129,-291,-263,-411,-410,-397,-394,-503,-469,-477,-442,-908,-760,-905,-863,-29964,-29966,-29965,-29965,-29965,-29967,-29969,-29969,-29965,-29968,-29980,-29981,-29987,0,-2916]} 1. d4 {[%emt 0:00:02]} Nf6 {[%emt 0:00:01]} 2. Nf3 {[%emt 0:00:02]} e6 {[%emt 0:00:01]} 3. Bg5 {[%emt 0:00:02]} b6 {[%emt 0:00:02]} 4. e3 {[%emt 0:00:03]} Bb7 {[%emt 0:00:01]} 5. Bd3 {[%emt 0:00:01]} c5 {[%emt 0:00:02]} 6. c3 {[%emt 0:00:02]} Be7 {[%emt 0:00:02]} 7. O-O {[%emt 0:00:02]} O-O {[%emt 0:00:04]} 8. Nbd2 {[%emt 0:00:04]} d5 {[%emt 0:00:01]} 9. Qe2 {[%emt 0:00:02]} Nbd7 {[%emt 0:00:02]} 10. Ba6 {[%emt 0:00:03] D03: 1 d4 d5 2 Nf3 Nf6 3 Bg5, including Torre Attack with early ...d5.} Bxa6 {[%emt 0:00:05]} 11. Qxa6 {[%emt 0:00:02]} Qc8 {[%emt 0:00:01]} 12. Qxc8 {[%emt 0:00:03]} Raxc8 {[%emt 0:00:01] [#]} 13. h3 $146 {[%emt 0:00:05]} ({Predecessor:} 13. Ne5 Rfe8 14. f4 h6 15. Bxf6 Nxf6 16. g4 Bd6 17. h3 Bxe5 18. fxe5 Nd7 19. Rad1 {½-½ (38) Bien,S (2056)-Krenzel,J (1991) Nordrheinwestfalen 2018}) 13... cxd4 {[%emt 0:00:07]} 14. exd4 {[%emt 0:00:31]} Bd6 {[%emt 0:00:12]} 15. a4 {[%emt 0:00:09]} Rc6 {[%emt 0:00:08]} 16. Rfe1 {[%emt 0:00:11]} h6 {[%emt 0:00:10]} 17. Bxf6 {[%emt 0:00:01]} Nxf6 {[%emt 0:00:07]} 18. Ne5 {[%emt 0:00:02]} Rc7 {[%emt 0:00:05]} 19. f3 {[%emt 0:00:21]} Rb8 {[%emt 0:00:03]} 20. Nb1 {[%emt 0:00:56]} b5 {[%emt 0:00:06]} (20... a6 $15) 21. axb5 $11 {[%emt 0:00:01]} Rxb5 {[%emt 0:00:01]} 22. b4 {[%emt 0:00:01]} Nd7 23. Nxd7 {[%emt 0:00:03]} Rxd7 {[%emt 0:01:40]} 24. Kf2 {[%emt 0:00:19]} Rc7 {[%emt 0:00:12]} (24... a5 $142 25. Na3 (25. Rxa5 Rxa5 26. bxa5 Ra7 $15) 25... Rb8 26. bxa5 Ra7) 25. Ra6 {[%emt 0:00:03]} Rb6 {[%emt 0:00:05]} 26. Ra2 {[%emt 0:00:16]} f6 {[%emt 0:00:10]} 27. Ra5 {[%emt 0:00:18]} Kf7 {[%emt 0:00:07]} 28. g3 {[%emt 0:00:09]} h5 {[%emt 0:00:19][%cal Bh6h5,Bh5h4,Bh4g3][%mdl 32]} 29. f4 {[%emt 0:00:08]} (29. Re2 $11) 29... h4 $1 $15 {[%emt 0:00:13]} 30. Kf3 {[%emt 0:00:58] White is on the road to losing.} (30. gxh4 $15 Bxf4 31. Kf3) 30... hxg3 {[%emt 0:00:04][%cal Ob6b4] aiming for ...Rxb4!} 31. h4 $2 {[%emt 0:00:22] [#]} (31. Ra2 $17 {keeps fighting.}) 31... Rxb4 $1 $19 {[%emt 0:00:34]} ({Worse is} 31... g2 32. Rg1 $17) 32. cxb4 {[%emt 0:00:29]} (32. Ra6 $142 Rb6 33. Rxb6 axb6 34. Kxg3) 32... Bxb4 {[%emt 0:00:02]} 33. Rxa7 Rxa7 {[%emt 0:00:03][%mdl 4096] Endgame KRB-KRN} 34. Re2 {[%emt 0:00:17]} Bd6 {[%emt 0:00:39]} 35. h5 {[%emt 0:01:25]} Ra4 {[%emt 0:00:21]} 36. Ke3 {[%emt 0:00:46]} (36. Kxg3 $142 Rxd4 37. Rf2) 36... e5 {[%emt 0:00:31]} 37. fxe5 {[%emt 0:00:12]} fxe5 {[%emt 0:00:02]} 38. dxe5 {[%emt 0:00:05]} Re4+ {[%emt 0:00:11]} 39. Kf3 {[%emt 0:00:02]} Rxe2 {[%emt 0:00:01]} 40. Kxe2 {[%emt 0:00:01]} Bxe5 {[%emt 0:00:01] KB-KN} 41. Kf3 {[%emt 0:00:01]} Ke6 {[%emt 0:00:05]} 42. Nd2 {[%emt 0:00:12]} Kf5 {[%emt 0:00:08]} 43. Nf1 {[%emt 0:00:07]} Bf4 {[%emt 0:00:08]} 44. Nd2 Be5 $2 {[#]} (44... Bxd2 {mates} 45. Kxg3 d4 46. Kf2 d3 47. Kf3 Ke5 48. Kg4 Ke4 49. Kg3 Bg5 50. Kf2 Bh4+ 51. Kg2 d2 52. h6 d1=Q 53. hxg7 Qf3+ 54. Kh2 Qf2+ 55. Kh1 Bg3 56. g8=Q Qh2#) 45. Nb3 $2 {[%mdl 8192] Weighted Error Value: White=0.54/Black=0.11 (very precise)} (45. Nf1 $11 Bf4 46. Kg2 Kg4 47. h6 gxh6 48. Kh1 d4 49. Kg2 h5 50. Kg1 Kf3 51. Nh2+ gxh2+ 52. Kh1 Ke3 53. Kg2 d3 54. Kh1 d2 55. Kg2 d1=Q 56. Kh3 h1=Q#) 0-1